bitfinex-derivatives/quotes_BTCF0:USTF0_20240913
["timestamp","ask_amount","ask_price","bid_price","bid_amount"]
[1726228168756,0.003,58155.0,58154.0,0.29356158]
[1726228168757,0.174944,58155.0,58154.0,0.29356158]
[1726228168953,0.174944,58155.0,58154.0,0.08855397]
[1726228170650,0.174944,58155.0,58154.0,0.07137336]
[1726228170869,0.174944,58155.0,58152.0,0.06879463]
[1726228170870,0.085974,58154.0,58152.0,0.06879463]
[1726228171048,0.78167773,58153.0,58145.0,0.08677798]
[1726228171357,0.2567345,58146.0,58145.0,0.08677798]
[1726228171555,0.42016116,58146.0,58145.0,0.08677798]
[1726228171755,0.28342666,58146.0,58145.0,0.08677798]
[1726228172349,0.16342666,58146.0,58145.0,0.08677798]
[1726228172565,0.07744066,58146.0,58145.0,0.08677798]
[1726228172861,0.07844066,58146.0,58145.0,0.08677798]
[1726228173267,0.03633195,58146.0,58145.0,0.08677798]
[1726228174169,0.12231795,58146.0,58145.0,0.08677798]
[1726228174362,0.12531795,58146.0,58145.0,0.08677798]
[1726228174755,0.12431795,58146.0,58145.0,0.08677798]
[1726228174961,0.12621733,58146.0,58145.0,0.08777798]
[1726228177965,0.12622632,58146.0,58145.0,0.08777798]
[1726228178965,0.567663,58148.0,58145.0,0.12003161]
[1726228179277,0.566783,58148.0,58147.0,0.085984]
[1726228179772,0.446783,58148.0,58147.0,0.085984]
[1726228179960,0.3608,58148.0,58147.0,0.085984]
[1726228180163,0.3608,58148.0,58147.0,0.29185582]
[1726228180359,0.3608,58148.0,58147.0,0.41002545]
[1726228181166,0.3608,58148.0,58147.0,0.49600945]
[1726228181568,0.3608,58148.0,58147.0,0.49700945]
[1726228182074,0.3608,58148.0,58147.0,0.37800945]
[1726228182269,0.3608,58148.0,58147.0,0.17385582]
[1726228182576,0.446783,58148.0,58147.0,0.087984]
[1726228182977,0.532766,58148.0,58147.0,0.087984]
[1726228186078,0.732766,58148.0,58147.0,0.002]
[1726228186262,0.806366,58148.0,58147.0,0.002]
[1726228188771,0.445566,58148.0,58147.0,0.002]
[1726228188978,0.806366,58148.0,58147.0,0.002]
[1726228192580,0.606366,58148.0,58147.0,0.002]
[1726228192782,0.446783,58148.0,58147.0,0.087984]
[1726228194178,0.446783,58148.0,58147.0,0.29202036]
[1726228196180,0.446783,58148.0,58147.0,0.20614854]
[1726228198880,0.532766,58148.0,58147.0,0.20614854]
[1726228199080,0.446783,58148.0,58147.0,0.20614854]
[1726228200183,0.532766,58148.0,58147.0,0.30935272]
[1726228200889,0.446783,58148.0,58147.0,0.30951455]
[1726228201281,0.532766,58148.0,58147.0,0.30951455]
[1726228204789,0.532766,58148.0,58147.0,0.22363731]
[1726228205777,0.446783,58148.0,58147.0,0.30962131]
[1726228205978,0.085983,58148.0,58147.0,0.34757802]
[1726228206175,0.085983,58148.0,58147.0,0.34754524]
[1726228206992,0.085983,58148.0,58147.0,0.20641713]
[1726228207190,0.085983,58148.0,58147.0,0.12043313]
[1726228207378,0.285983,58148.0,58147.0,0.22362976]
[1726228207974,0.285983,58148.0,58147.0,0.12043313]
[1726228208185,0.205983,58148.0,58147.0,0.22363196]
[1726228208400,0.205983,58148.0,58147.0,0.20641713]
[1726228209187,0.24111689,58148.0,58147.0,0.087984]
[1726228209591,0.60191689,58148.0,58147.0,0.087984]
[1726228210289,0.48191689,58148.0,58147.0,0.087984]
[1726228211482,0.60143434,58148.0,58147.0,0.087984]
[1726228212989,0.68741734,58148.0,58147.0,0.002]
[1726228213193,0.60143434,58148.0,58147.0,0.002]
[1726228213388,0.68741734,58148.0,58147.0,0.002]
[1726228213591,0.60143434,58148.0,58147.0,0.002]
[1726228213900,0.61000932,58148.0,58147.0,0.002]
[1726228214393,0.61000932,58148.0,58133.0,0.0712]
[1726228214394,0.57678727,58148.0,58133.0,0.0712]
[1726228214594,0.205999,58137.0,58136.0,0.00059055]
[1726228214790,0.24110556,58137.0,58136.0,0.00059055]
[1726228215901,0.24110556,58137.0,58136.0,0.00359055]
[1726228216096,0.205999,58137.0,58136.0,0.12230542]
[1726228216584,0.205999,58137.0,58136.0,0.12530542]
[1726228216784,0.291998,58137.0,58136.0,0.12530542]
[1726228216984,0.377997,58137.0,58136.0,0.00659055]
[1726228217592,1.227997,58137.0,58136.0,0.00659055]
[1726228218991,1.228997,58137.0,58136.0,0.00359055]
[1726228219206,0.172022,58129.0,58128.0,0.004]
[1726228219389,0.172024,58128.0,58127.0,0.0009376]
[1726228219586,0.239724,58128.0,58127.0,0.0009376]
[1726228220685,0.240724,58128.0,58127.0,0.0009376]
[1726228221393,0.515512,58128.0,58127.0,0.0009376]
[1726228221596,0.635512,58128.0,58127.0,0.0009376]
[1726228222190,0.58756091,58128.0,58127.0,0.0009376]
[1726228225198,0.58756091,58128.0,58127.0,0.0869516]
[1726228225581,0.58756091,58128.0,58127.0,0.0009376]
[1726228230901,0.58756091,58128.0,58127.0,0.0869516]
[1726228231291,0.02074891,58128.0,58127.0,0.0869516]
[1726228231502,0.001,58128.0,58127.0,0.0869516]
[1726228231807,0.001,58128.0,58127.0,0.1583516]
[1726228234993,0.121,58128.0,58127.0,0.1583516]
[1726228235394,0.121,58128.0,58127.0,0.0869516]
[1726228235890,0.121,58128.0,58127.0,0.1067249]
[1726228236094,0.087012,58128.0,58127.0,0.1067249]
[1726228236798,0.287012,58128.0,58127.0,0.0869516]
[1726228237502,0.647812,58128.0,58127.0,0.0869516]
[1726228240999,0.447812,58128.0,58127.0,0.0869516]
[1726228241208,0.447812,58128.0,58127.0,0.0009376]
[1726228241905,0.087012,58128.0,58127.0,0.0009376]
[1726228242106,0.447812,58128.0,58127.0,0.0009376]
[1726228244604,0.533824,58128.0,58127.0,0.0009376]
[1726228244809,0.733824,58128.0,58127.0,0.0009376]
[1726228245704,0.819836,58128.0,58127.0,0.0009376]
[1726228246207,0.94913546,58128.0,58127.0,0.0009376]
[1726228246700,1.11979212,58128.0,58127.0,0.0009376]
[1726228247012,0.94913546,58128.0,58127.0,0.0009376]
[1726228247207,0.94902661,58128.0,58127.0,0.0009376]
[1726228250812,1.11968327,58128.0,58127.0,0.0009376]
[1726228253911,0.91968327,58128.0,58127.0,0.0009376]
[1726228254104,1.11968327,58128.0,58127.0,0.0009376]
[1726228254306,0.819836,58128.0,58127.0,0.0009376]
[1726228256100,0.739836,58128.0,58127.0,0.0009376]
[1726228258212,0.653824,58128.0,58127.0,0.0009376]
[1726228258612,0.447812,58128.0,58127.0,0.0009376]
[1726228260304,0.447812,58128.0,58127.0,0.0869516]
[1726228261013,0.3618,58128.0,58127.0,0.0869516]
[1726228261212,0.001,58128.0,58127.0,0.2929656]
[1726228261413,0.13043449,58128.0,58127.0,0.2929656]
[1726228261615,0.1546754,58128.0,58127.0,0.2929656]
[1726228261809,0.28410989,58128.0,58127.0,0.2929656]
[1726228266318,0.28410989,58128.0,58127.0,0.31272016]
[1726228269020,0.07763888,58128.0,58127.0,0.10670616]
[1726228269322,0.24153004,58128.0,58127.0,0.0869516]
[1726228269523,0.207012,58128.0,58127.0,0.0869516]
[1726228272218,0.087012,58128.0,58127.0,0.0869516]
[1726228272417,0.001,58128.0,58127.0,0.0869516]
[1726228272618,0.001,58128.0,58127.0,0.1729656]
[1726228273927,0.001,58128.0,58127.0,0.0869516]
[1726228275922,0.087012,58128.0,58127.0,0.0869516]
[1726228276327,0.22357069,58128.0,58127.0,0.0869516]
[1726228276631,0.21412619,58128.0,58127.0,0.2069516]
[1726228276928,0.21412619,58128.0,58127.0,0.6537656]
[1726228277121,0.0775675,58128.0,58127.0,0.6537656]
[1726228280823,0.0775675,58128.0,58127.0,0.5677516]
[1726228281134,0.21412619,58128.0,58127.0,0.6537656]
[1726228282425,0.0775675,58128.0,58127.0,0.6537656]
[1726228283630,0.21412619,58128.0,58127.0,0.6537656]
[1726228283826,0.0775675,58128.0,58127.0,0.6537656]
[1726228284334,0.001,58128.0,58127.0,0.6537656]
[1726228284534,0.001,58128.0,58127.0,0.5677516]
[1726228287027,0.001,58128.0,58127.0,0.4817376]
[1726228287028,0.087012,58128.0,58127.0,0.4817376]
[1726228287233,0.293024,58128.0,58127.0,0.0009376]
[1726228289529,0.653824,58128.0,58127.0,0.0009376]
[1726228289938,0.67219858,58128.0,58127.0,0.0009376]
[1726228291739,0.51612,58127.0,58121.0,0.05159421]
[1726228291943,0.258081,58118.0,58109.0,0.06846475]
[1726228292142,0.378081,58118.0,58109.0,0.06846475]
[1726228292441,0.17208,58109.0,58108.0,0.00070661]
[1726228292634,0.53288,58109.0,58108.0,0.00070661]
[1726228292834,1.64916,58109.0,58108.0,0.00070661]
[1726228293140,1.71446,58109.0,58108.0,0.00070661]
[1726228293735,1.77636,58109.0,58108.0,0.00070661]
[1726228294230,1.97636,58109.0,58108.0,0.00070661]
[1726228294936,1.97936,58109.0,58108.0,0.00170661]
[1726228295238,0.086054,58100.0,58099.0,0.00148205]
[1726228295435,0.646854,58100.0,58099.0,0.00148205]
[1726228295639,1.163214,58100.0,58099.0,0.00148205]
[1726228296739,0.648854,58100.0,58099.0,0.00148205]
[1726228296943,0.3628,58100.0,58099.0,0.00148205]
[1726228297736,0.3658,58100.0,58099.0,0.00148205]
[1726228297943,0.737908,58100.0,58099.0,0.00148205]
[1726228299153,0.651854,58100.0,58099.0,0.00148205]
[1726228299356,0.651854,58100.0,58090.0,0.56170282]
[1726228299357,1.68216,58100.0,58090.0,0.00090282]
[1726228299559,0.2,58091.0,58090.0,0.08697182]
[1726228299761,0.2,58095.0,58090.0,0.08697182]
[1726228300257,0.3608,58093.0,58092.0,0.086066]
[1726228300651,0.2,58095.0,58092.0,0.086066]
[1726228300852,0.3608,58094.0,58092.0,0.086066]
[1726228301254,0.086067,58091.0,58090.0,0.00890282]
[1726228301556,0.086067,58091.0,58090.0,0.00090282]
[1726228301761,0.003,58093.0,58090.0,0.00090282]
[1726228302061,0.003,58093.0,58090.0,0.08697182]
[1726228302263,0.001,58093.0,58090.0,0.08697182]
[1726228302962,0.4905,58094.0,58090.0,0.08697182]
[1726228303165,0.4915,58094.0,58090.0,0.08697182]
[1726228303755,0.4905,58094.0,58090.0,0.08697182]
[1726228304054,0.4905,58094.0,58090.0,0.08797182]
[1726228304256,0.086067,58091.0,58090.0,0.08797182]
[1726228304658,0.286067,58091.0,58090.0,0.00090282]
[1726228304962,0.372134,58091.0,58090.0,0.00190282]
[1726228305367,0.3608,58092.0,58090.0,0.00190282]
[1726228306159,0.3608,58092.0,58091.0,0.086067]
[1726228306453,0.40380338,58092.0,58091.0,0.086067]
[1726228308063,0.40480338,58092.0,58091.0,0.086067]
[1726228308675,0.31873738,58092.0,58091.0,0.086067]
[1726228312169,0.40480338,58092.0,58091.0,0.086067]
[1726228314164,0.52480338,58092.0,58091.0,0.086067]
[1726228315569,0.43873738,58092.0,58091.0,0.086067]
[1726228316174,0.52480338,58092.0,58091.0,0.086067]
[1726228321573,0.52480338,58092.0,58091.0,0.20586582]
[1726228322182,0.43873738,58092.0,58091.0,0.29193282]
[1726228323182,0.52480338,58092.0,58091.0,0.29193282]
[1726228324378,0.43873738,58092.0,58091.0,0.43483349]
[1726228324969,0.52480338,58092.0,58091.0,0.34876649]
[1726228325173,0.43873738,58092.0,58091.0,0.34876649]
[1726228325378,0.43873738,58092.0,58091.0,0.43483349]
[1726228325580,0.43873738,58092.0,58091.0,0.34876649]
[1726228326286,0.43873738,58092.0,58091.0,0.43483349]
[1726228326482,0.43873738,58092.0,58091.0,0.34876649]
[1726228329276,0.43873738,58092.0,58091.0,0.43483349]
[1726228329878,0.43873738,58092.0,58091.0,0.34876649]
[1726228330889,0.43873738,58092.0,58091.0,0.43483349]
[1726228331286,0.43873738,58092.0,58091.0,0.34876649]
[1726228331782,0.43873738,58092.0,58091.0,0.43483349]
[1726228331983,0.43873738,58092.0,58091.0,0.34876649]
[1726228332988,0.52480338,58092.0,58091.0,0.34876649]
[1726228333989,0.52480338,58092.0,58091.0,0.34904817]
[1726228336593,0.60048832,58092.0,58091.0,0.086067]
[1726228337895,0.28275094,58092.0,58091.0,0.086067]
[1726228340779,0.07668494,58092.0,58091.0,0.172134]
[1726228341180,0.00088,58095.0,58094.0,0.172126]
[1726228341381,0.11968044,58099.0,58096.0,0.08606]
[1726228341691,0.36568,58102.0,58101.0,0.086052]
[1726228341692,0.48136044,58102.0,58101.0,0.086052]
[1726228341993,0.48048044,58102.0,58101.0,0.086052]
[1726228342181,0.3608,58102.0,58101.0,0.086052]
[1726228343088,0.3668,58102.0,58101.0,0.087052]
[1726228344596,0.3668,58102.0,58101.0,0.20664666]
[1726228345287,0.017,58102.0,58101.0,0.20764666]
[1726228347392,0.017,58102.0,58101.0,0.31095829]
[1726228347695,0.01871506,58106.0,58105.0,0.172092]
[1726228347993,0.086038,58111.0,58110.0,0.086039]
[1726228348390,0.10464388,58111.0,58110.0,0.086039]
[1726228349096,0.11064388,58111.0,58110.0,0.087039]
[1726228349985,0.11464388,58111.0,58110.0,0.088039]
[1726228351698,0.19087436,58111.0,58110.0,0.088039]
[1726228352283,0.32725744,58111.0,58110.0,0.088039]
[1726228352491,0.24369095,58111.0,58110.0,0.088039]
[1726228353288,0.39710717,58111.0,58110.0,0.088039]
[1726228354293,0.39710717,58111.0,58110.0,0.002]
[1726228354494,0.48314517,58111.0,58110.0,0.002]
[1726228354794,0.39710717,58111.0,58110.0,0.002]
[1726228356098,0.69052895,58111.0,58110.0,0.00122095]
[1726228357795,0.69033508,58111.0,58110.0,0.00122095]
[1726228358491,0.69035065,58111.0,58110.0,0.00122095]
[1726228358797,0.77638865,58111.0,58110.0,0.00122095]
[1726228359591,0.64751988,58111.0,58110.0,0.00122095]
[1726228360315,0.71121988,58111.0,58110.0,0.00122095]
[1726228360789,0.71393988,58111.0,58110.0,0.00122095]
[1726228361998,0.258147,58103.0,58102.0,0.004]
[1726228362304,0.172116,58097.0,58096.0,0.3298]
[1726228363803,0.258174,58097.0,58096.0,0.3298]
[1726228365291,0.259174,58097.0,58096.0,0.3298]
[1726228365494,0.172128,58093.0,58092.0,0.0618]
[1726228365692,0.652928,58093.0,58092.0,0.0618]
[1726228365895,0.086067,58091.0,58090.0,0.00090282]
[1726228366795,0.172134,58091.0,58090.0,0.00090282]
[1726228367000,0.258201,58091.0,58090.0,0.00090282]
[1726228367505,0.29145217,58091.0,58090.0,0.00090282]
[1726228368092,0.29145217,58091.0,58090.0,0.00190282]
[1726228368504,0.29145217,58091.0,58090.0,0.00390282]
[1726228368505,0.258201,58091.0,58090.0,0.00390282]
[1726228368903,0.29145391,58091.0,58090.0,0.00390282]
[1726228369298,0.258201,58091.0,58090.0,0.00390282]
[1726228371704,0.27717847,58091.0,58090.0,0.00390282]
[1726228372700,0.27717847,58091.0,58084.0,0.004]
[1726228372701,0.172152,58085.0,58084.0,0.004]
[1726228372898,0.17216,58082.0,58081.0,0.00186353]
[1726228373098,0.37824,58082.0,58081.0,0.00186353]
[1726228374198,0.37824,58082.0,58081.0,0.00786353]
[1726228374596,1.49476,58082.0,58081.0,5.3e-07]
[1726228374800,0.258276,58074.0,58073.0,0.004]
[1726228375002,0.172188,58073.0,58068.0,0.08590216]
[1726228375413,0.292188,58073.0,58068.0,0.08590216]
[1726228375707,0.172188,58073.0,58068.0,0.08590216]
[1726228375896,0.206094,58073.0,58068.0,0.08590216]
[1726228376707,0.210094,58073.0,58068.0,0.08590216]
[1726228377610,0.215094,58073.0,58068.0,0.08590216]
[1726228378014,0.23397777,58073.0,58068.0,0.08590216]
[1726228378408,0.009,58073.0,58072.0,0.08768338]
[1726228379008,0.44672517,58074.0,58072.0,0.00158838]
[1726228379307,0.598488,58073.0,58072.0,0.00158838]
[1726228379501,0.660088,58073.0,58072.0,0.00158838]
[1726228379910,0.662088,58073.0,58072.0,0.00158838]
[1726228381107,0.664088,58073.0,58072.0,0.00158838]
[1726228381306,0.453894,58073.0,58072.0,0.00158838]
[1726228381610,0.573894,58073.0,58072.0,0.00158838]
[1726228382109,0.67234633,58073.0,58072.0,0.00158838]
[1726228383011,0.007,58073.0,58072.0,0.00158838]
[1726228383212,0.093094,58073.0,58072.0,0.00158838]
[1726228383705,0.453894,58073.0,58072.0,0.00158838]
[1726228386210,0.653894,58073.0,58072.0,0.00158838]
[1726228390711,0.656614,58073.0,58072.0,0.00158838]
[1726228392923,0.742708,58073.0,58072.0,0.00158838]
[1726228394325,0.656614,58073.0,58072.0,0.00158838]
[1726228394818,0.00972,58073.0,58072.0,0.08768338]
[1726228395324,0.01862581,58087.0,58080.0,0.086083]
[1726228395520,0.01862581,58087.0,58078.0,0.2]
[1726228395521,0.086079,58084.0,58078.0,0.2]
[1726228395717,0.086079,58084.0,58082.0,0.086079]
[1726228395919,0.004,58090.0,58083.0,0.086078]
[1726228395920,0.086074,58086.0,58083.0,0.086078]
[1726228396125,0.086076,58085.0,58084.0,0.0646]
[1726228396521,0.086083,58080.0,58079.0,0.0597]
[1726228396723,0.286083,58080.0,58079.0,0.0597]
[1726228398016,0.646883,58080.0,58079.0,0.12838578]
[1726228398214,0.646883,58080.0,58079.0,0.0597]
[1726228398530,0.646883,58080.0,58079.0,0.1284027]
[1726228398828,0.646883,58080.0,58079.0,0.1294027]
[1726228399228,0.646883,58080.0,58079.0,0.0607]
[1726228399432,0.646883,58080.0,58079.0,0.001]
[1726228399634,0.646883,58080.0,58079.0,0.002]
[1726228400020,0.3608,58080.0,58079.0,0.088085]
[1726228400219,0.086079,58084.0,58079.0,0.002]
[1726228400425,0.1046265,58088.0,58080.0,0.06872551]
[1726228400625,0.2,58091.0,58083.0,0.06872551]
[1726228400828,0.086079,58083.0,58081.0,0.06872551]
[1726228401020,0.086083,58080.0,58079.0,0.002]
[1726228401623,0.086083,58080.0,58079.0,0.001]
[1726228402118,0.086089,58076.0,58075.0,0.17199216]
[1726228402321,0.086089,58076.0,58075.0,0.29206084]
[1726228403123,0.086089,58076.0,58075.0,0.20597084]
[1726228403332,0.086089,58076.0,58075.0,0.12006868]
[1726228403723,0.086089,58076.0,58073.0,0.1249]
[1726228403724,0.086091,58075.0,58073.0,0.210994]
[1726228403930,0.03325674,58074.0,58073.0,0.210994]
[1726228404934,0.07541907,58074.0,58073.0,0.210994]
[1726228405839,0.16151107,58074.0,58073.0,0.210994]
[1726228406340,0.1193494,58074.0,58073.0,0.210994]
[1726228406725,0.2054774,58074.0,58073.0,0.210994]
[1726228406926,0.2387348,58074.0,58073.0,0.210994]
[1726228407431,0.1193494,58074.0,58073.0,0.210994]
[1726228408732,0.1193494,58074.0,58073.0,0.330994]
[1726228408733,0.0332574,58074.0,58073.0,0.330994]
[1726228408930,0.0332574,58074.0,58073.0,0.691794]
[1726228409126,0.0332574,58074.0,58073.0,0.330994]
[1726228409323,0.1193494,58074.0,58073.0,0.086094]
[1726228409526,0.11935563,58074.0,58073.0,0.086094]
[1726228410940,0.12535563,58074.0,58073.0,0.087094]
[1726228411432,0.11935563,58074.0,58073.0,0.086094]
[1726228411638,0.12535563,58074.0,58073.0,0.087094]
[1726228411834,0.095092,58074.0,58073.0,0.20717835]
[1726228413527,0.095092,58074.0,58073.0,0.31026126]
[1726228414438,0.095092,58074.0,58073.0,0.31027252]
[1726228414834,0.095092,58074.0,58073.0,0.20718961]
[1726228415235,0.009,58074.0,58073.0,0.67117499]
[1726228415440,0.009,58074.0,58073.0,0.63018961]
[1726228416738,0.009,58074.0,58073.0,0.71628361]
[1726228416942,0.086086,58079.0,58078.0,0.086086]
[1726228417139,0.086086,58079.0,58078.0,0.67016758]
[1726228417335,0.086086,58079.0,58078.0,0.56698161]
[1726228417640,0.204,58086.0,58081.0,0.086079]
[1726228417641,0.086081,58082.0,58081.0,0.086079]
[1726228417941,0.086081,58082.0,58081.0,0.20617461]
[1726228418139,0.086081,58082.0,58081.0,0.30935667]
[1726228418341,0.086081,58082.0,58081.0,0.20617461]
[1726228418544,0.086081,58082.0,58081.0,0.30894455]
[1726228418744,0.086078,58084.0,58083.0,0.086075]
[1726228418946,0.16189154,58084.0,58083.0,0.086075]
[1726228419242,0.1618935,58084.0,58083.0,0.086075]
[1726228420244,0.23908422,58084.0,58083.0,0.086075]
[1726228420434,0.11973952,58084.0,58083.0,0.086075]
[1726228420850,0.16189345,58084.0,58083.0,0.087075]
[1726228421143,0.11973952,58084.0,58083.0,0.087075]
[1726228421739,0.16189345,58084.0,58083.0,0.087075]
[1726228422137,0.16189345,58084.0,58083.0,0.088075]
[1726228422339,0.15299571,58084.0,58083.0,0.088075]
[1726228422649,0.03366152,58084.0,58083.0,0.174154]
[1726228424239,0.03366152,58084.0,58083.0,0.173154]
[1726228424540,0.03366152,58084.0,58083.0,0.174154]
[1726228425149,0.03366152,58084.0,58083.0,0.173154]
[1726228425355,0.03366152,58084.0,58083.0,0.174154]
[1726228426838,0.086072,58088.0,58087.0,0.086073]
[1726228427946,0.086072,58088.0,58087.0,0.087073]
[1726228428148,0.172144,58088.0,58087.0,0.001]
[1726228429847,0.172144,58088.0,58087.0,0.002]
[1726228432252,0.292144,58088.0,58087.0,0.002]
[1726228441961,0.32615235,58088.0,58087.0,0.002]
[1726228442355,0.44548654,58088.0,58087.0,0.002]
[1726228442750,0.32615235,58088.0,58087.0,0.002]
[1726228443256,0.36830603,58088.0,58087.0,0.002]
[1726228443850,0.36830615,58088.0,58087.0,0.002]
[1726228445057,0.44556507,58088.0,58087.0,0.002]
[1726228445666,0.36830788,58088.0,58087.0,0.002]
[1726228446267,0.4115959,58088.0,58087.0,0.002]
[1726228446560,0.32610318,58088.0,58087.0,0.002]
[1726228446865,0.3682587,58088.0,58087.0,0.002]
[1726228447960,0.3682587,58088.0,58075.0,0.1242]
[1726228447961,1.27964442,58088.0,58075.0,0.1242]
[1726228448168,0.086089,58076.0,58075.0,0.0634]
[1726228448460,0.16221082,58076.0,58075.0,0.0634]
[1726228448853,0.086089,58076.0,58075.0,0.0634]
[1726228449060,0.172178,58076.0,58075.0,0.0634]
[1726228449255,0.172178,58076.0,58075.0,0.13221646]
[1726228450361,0.172178,58076.0,58075.0,0.0634]
[1726228450564,0.292178,58076.0,58075.0,0.0634]
[1726228450764,0.292178,58076.0,58075.0,0.13221646]
[1726228451063,0.172178,58076.0,58075.0,0.13221646]
[1726228451265,0.172178,58076.0,58075.0,0.0634]
[1726228451863,0.086089,58076.0,58073.0,0.06877027]
[1726228452070,0.172184,58074.0,58073.0,0.06877027]
[1726228452276,0.172184,58074.0,58072.0,0.00158838]
[1726228452277,0.172188,58073.0,58072.0,0.07035865]
[1726228453662,0.174188,58073.0,58072.0,0.07035865]
[1726228454263,0.174188,58073.0,58072.0,0.00158838]
[1726228455267,0.175188,58073.0,58072.0,0.00158838]
[1726228455666,0.381282,58073.0,58072.0,0.00158838]
[1726228456969,0.41454738,58073.0,58072.0,0.00158838]
[1726228457166,0.381282,58073.0,58072.0,0.00158838]
[1726228458571,0.295188,58073.0,58072.0,0.00158838]
[1726228459167,0.381282,58073.0,58072.0,0.00158838]
[1726228462777,0.381282,58073.0,58063.0,0.00542702]
[1726228462778,0.172214,58064.0,58063.0,0.00542702]
[1726228462976,0.206107,58064.0,58063.0,0.00142702]
[1726228463183,0.086107,58064.0,58063.0,0.00142702]
[1726228463683,0.086107,58064.0,58063.0,0.08753602]
[1726228463980,0.16302367,58064.0,58063.0,0.00842702]
[1726228464368,0.16302367,58064.0,58063.0,0.01442702]
[1726228464974,0.16302367,58064.0,58063.0,0.06589176]
[1726228465172,0.24913067,58064.0,58063.0,0.06589176]
[1726228465881,0.24913067,58064.0,58063.0,0.01442702]
[1726228466781,0.2675673,58064.0,58063.0,0.01442702]
[1726228467380,1.25511663,58064.0,58058.0,0.05146474]
[1726228467680,0.086135,58045.0,58041.0,0.18917515]
[1726228467882,0.3608,58046.0,58045.0,0.086135]
[1726228468074,0.446922,58054.0,58045.0,0.423]
[1726228468379,0.446922,58054.0,58044.0,0.12167498]
[1726228468380,0.3608,58046.0,58044.0,0.00167498]
[1726228468577,0.4808,58046.0,58044.0,0.00167498]
[1726228469080,0.3608,58046.0,58044.0,0.00167498]
[1726228470775,0.3628,58046.0,58044.0,0.00167498]
[1726228471179,0.3648,58046.0,58044.0,0.00167498]
[1726228471481,0.3668,58046.0,58044.0,0.00167498]
[1726228471777,0.006,58046.0,58045.0,0.086135]
[1726228471987,0.006,58046.0,58045.0,0.446935]
[1726228473178,0.090134,58046.0,58044.0,0.00167498]
[1726228473380,0.086135,58045.0,58044.0,0.00167498]
[1726228473887,0.007,58046.0,58044.0,0.00167498]
[1726228474075,0.446935,58045.0,58044.0,0.00167498]
[1726228474872,0.649935,58045.0,58044.0,0.00167498]
[1726228476386,0.73607,58045.0,58044.0,0.00167498]
[1726228477180,0.75641259,58045.0,58044.0,0.00167498]
[1726228477380,0.75341259,58045.0,58044.0,0.00167498]
[1726228477684,0.75841259,58045.0,58044.0,0.00167498]
[1726228477985,0.76041259,58045.0,58044.0,0.00167498]
[1726228478176,0.67427759,58045.0,58044.0,0.00167498]
[1726228479178,0.47427759,58045.0,58044.0,0.00167498]
[1726228480086,0.11347759,58045.0,58044.0,0.00167498]
[1726228481688,0.009,58045.0,58044.0,0.00167498]
[1726228481887,0.009,58045.0,58044.0,0.08781198]
[1726228482301,0.009,58045.0,58044.0,0.64861198]
[1726228482793,0.00272,58046.0,58045.0,0.086135]
[1726228482991,0.00272,58046.0,58045.0,0.208535]
[1726228484187,0.00872,58046.0,58045.0,0.209535]
[1726228484590,0.094854,58046.0,58045.0,0.001]
[1726228484794,0.180988,58046.0,58045.0,0.001]
[1726228484985,0.094854,58046.0,58045.0,0.001]
[1726228485302,0.180988,58046.0,58045.0,0.001]
[1726228485484,0.094854,58046.0,58045.0,0.001]
[1726228485990,0.11824316,58046.0,58045.0,0.001]
[1726228487093,0.03210916,58046.0,58045.0,0.087135]
[1726228487606,0.01372,58046.0,58045.0,0.087135]
[1726228488797,0.099854,58046.0,58045.0,0.087135]
[1726228489694,0.099854,58046.0,58045.0,0.001]
[1726228491501,0.460654,58046.0,58045.0,0.001]
[1726228492001,0.546788,58046.0,58045.0,0.001]
[1726228493196,1.063628,58046.0,58045.0,0.001]
[1726228493596,1.394068,58046.0,58045.0,0.001]
[1726228493802,1.997042,58046.0,58045.0,0.001]
[1726228494001,2.07251164,58046.0,58045.0,0.001]
[1726228494299,2.20908153,58046.0,58045.0,0.001]
[1726228494503,2.12294753,58046.0,58045.0,0.001]
[1726228494703,2.12294753,58046.0,58044.0,0.00167498]
[1726228494704,1.81410964,58046.0,58044.0,0.00167498]
[1726228494906,0.2,58037.0,58035.0,0.0018861]
[1726228495203,0.086162,58027.0,58021.0,0.08617]
[1726228495404,0.086162,58027.0,58017.0,0.00119072]
[1726228495405,0.286162,58027.0,58022.0,0.086169]
[1726228495593,0.086162,58027.0,58017.0,0.25999072]
[1726228496302,0.40526576,58027.0,58017.0,0.25999072]
[1726228496499,0.11944799,58027.0,58017.0,0.25999072]
[1726228496703,0.23858205,58027.0,58017.0,0.25999072]
[1726228497314,0.23958205,58027.0,58026.0,0.01031517]
[1726228497712,0.23958205,58027.0,58026.0,0.01831517]
[1726228497713,0.087162,58027.0,58026.0,0.01831517]
[1726228498020,0.16264634,58027.0,58026.0,0.01831517]
[1726228498220,0.03428616,58027.0,58026.0,0.10447817]
[1726228498412,0.001,58027.0,58026.0,0.10447817]
[1726228499017,0.001,58027.0,58026.0,0.16107817]
[1726228500024,0.001,58027.0,58026.0,0.67807817]
[1726228500410,0.001,58027.0,58026.0,1.27807817]
[1726228500716,0.004,58034.0,58026.0,0.24724117]
[1726228500918,0.004,58037.0,58036.0,0.086149]
[1726228501221,0.086146,58038.0,58037.0,0.086147]
[1726228501416,0.22626703,58042.0,58041.0,0.086141]
[1726228501613,0.1616066,58042.0,58041.0,0.086141]
[1726228502014,0.08614,58042.0,58041.0,0.15491127]
[1726228503325,0.09314,58042.0,58041.0,0.15591127]
[1726228504325,0.10214,58042.0,58041.0,0.088141]
[1726228505220,0.30214,58042.0,58041.0,0.15688167]
[1726228505526,0.30214,58042.0,58041.0,0.002]
[1726228507315,0.38828,58042.0,58041.0,0.002]
[1726228507522,0.30214,58042.0,58041.0,0.002]
[1726228507920,0.38828,58042.0,58041.0,0.002]
[1726228509124,0.086142,58041.0,58029.0,0.143258]
[1726228509330,0.3608,58030.0,58029.0,0.143258]
[1726228509530,0.39408029,58030.0,58029.0,0.143258]
[1726228510425,0.39408029,58030.0,58029.0,0.148258]
[1726228510723,0.51316779,58030.0,58029.0,0.148258]
[1726228510928,0.51316779,58030.0,58029.0,0.153258]
[1726228511128,0.39408029,58030.0,58029.0,0.153258]